bitfinex-derivatives/quotes_SOLF0:USTF0_20250509
["timestamp","ask_amount","ask_price","bid_price","bid_amount"]
[1746793350193,32.22,171.64,171.48,2.16631677]
[1746793350386,5.8273,171.63,171.59,5.8284]
[1746793350791,5.8279,171.62,171.53,32.22]
[1746793350991,32.22,171.64,171.54,1.16590882]
[1746793351496,32.22,171.64,171.59,5.8285]
[1746793352191,5.8277,171.62,171.59,5.8285]
[1746793353694,5.8274,171.63,171.59,5.8285]
[1746793353903,32.22,171.64,171.54,1.16590882]
[1746793354301,5.8274,171.63,171.54,1.16590882]
[1746793355902,38.0471,171.64,171.54,1.16590882]
[1746793356104,32.18,171.63,171.54,1.16590882]
[1746793356498,32.18,171.63,171.6,5.8281]
[1746793357002,38.0074,171.63,171.6,5.8281]
[1746793357903,32.18,171.63,171.6,5.8281]
[1746793358404,32.18,171.63,171.54,1.16590882]
[1746793358801,32.18,171.63,171.58,5.8288]
[1746793359206,5.8281,171.61,171.54,1.16590882]
[1746793359409,32.18,171.63,171.54,1.16590882]
[1746793359604,11.02465356,171.62,171.54,1.16590882]
[1746793359803,12.09618721,171.62,171.54,1.16590882]
[1746793360004,11.02465356,171.62,171.54,6.99600882]
[1746793360206,5.8292,171.58,171.54,6.99600882]
[1746793360403,37.9892,171.58,171.54,6.99600882]
[1746793360605,37.9892,171.58,171.55,5.8299]
[1746793360907,37.9892,171.58,171.54,1.16590882]
[1746793361406,37.9892,171.58,171.55,5.83]
[1746793362609,32.16,171.58,171.54,1.16590882]
[1746793362808,43.18465356,171.58,171.54,1.16590882]
[1746793363809,5.83,171.55,171.54,1.16590882]
[1746793375320,5.8297,171.56,171.54,1.16590882]
[1746793375527,32.1,171.6,171.54,1.16590882]
[1746793376024,5.8294,171.57,171.54,6.99620882]
[1746793376325,5.8294,171.57,171.54,1.16590882]
[1746793378726,5.8297,171.56,171.54,1.16590882]
[1746793378927,32.1,171.6,171.54,1.16590882]
[1746793379826,5.8296,171.57,171.54,1.16590882]
[1746793381221,32.1,171.6,171.54,1.16590882]
[1746793383325,32.1,171.6,171.54,6.99620882]
[1746793383527,32.06,171.64,171.54,1.16590882]
[1746793383729,5.8282,171.61,171.55,3.7854]
[1746793384525,32.06,171.64,171.55,3.7854]
[1746793385530,32.06,171.64,171.56,6.42733563]
[1746793385729,32.06,171.64,171.57,6.42733563]
[1746793386034,5.8288,171.59,171.58,6.42733563]
[1746793386231,22.66071649,171.67,171.58,6.42733563]
[1746793386432,33.11130175,171.66,171.59,6.42733563]
[1746793386631,33.11130175,171.66,171.6,6.42733563]
[1746793386930,33.11130175,171.66,171.55,3.7854]
[1746793387131,5.8284,171.6,171.56,13.42268639]
[1746793387331,5.8284,171.6,171.57,6.42741349]
[1746793387533,5.8284,171.6,171.58,6.42741349]
[1746793387732,5.8284,171.6,171.59,6.42741349]
[1746793388732,5.829,171.59,171.56,1.1657729]
[1746793388935,32.02,171.61,171.57,6.42589873]
[1746793389234,32.02,171.61,171.56,1.1657729]
[1746793389434,5.8292,171.58,171.57,6.42711776]
[1746793390634,5.8293,171.57,171.56,1.1657729]
[1746793390834,5.8293,171.57,171.56,7.59562121]
[1746793391337,32.02,171.61,171.56,7.59584]
[1746793391633,32.02,171.61,171.57,6.4300671]
[1746793391832,5.8293,171.57,171.56,1.1657729]
[1746793392032,5.8293,171.57,171.56,7.59649469]
[1746793392935,5.8292,171.58,171.56,7.59649469]
[1746793393134,5.8292,171.58,171.57,6.43072179]
[1746793394639,32.02,171.61,171.57,6.43072179]
[1746793394837,32.0,171.62,171.58,6.43072179]
[1746793395032,32.0,171.63,171.59,6.43072179]
[1746793395238,32.0,171.63,171.6,6.43072179]
[1746793395440,32.0,171.63,171.56,1.1657729]
[1746793395637,32.0,171.63,171.57,6.42343304]
[1746793395938,5.8293,171.57,171.56,1.1657729]
[1746793396130,5.8293,171.57,171.56,7.60254486]
[1746793396740,5.829,171.58,171.56,7.60254486]
[1746793396936,5.829,171.58,171.57,6.43677196]
[1746793399042,5.829,171.58,171.56,1.1657729]
[1746793399043,5.8293,171.57,171.56,1.1657729]
[1746793399842,5.8293,171.57,171.56,7.60054571]
[1746793401341,5.8293,171.57,171.56,7.60032812]
[1746793401642,5.8293,171.57,171.56,1.1657729]
[1746793402140,5.8293,171.57,171.56,7.60064653]
[1746793402339,5.8293,171.57,171.56,9.80895565]
[1746793402542,5.8291,171.58,171.56,9.81051416]
[1746793402742,5.8291,171.58,171.57,2.20830912]
[1746793406343,5.8291,171.58,171.57,8.64935496]
[1746793406940,357.0,171.66,171.57,8.64935496]
[1746793407139,31.94,171.65,171.58,8.64935496]
[1746793407341,31.94,171.65,171.59,8.64935496]
[1746793407541,31.94,171.65,171.6,14.47755496]
[1746793407542,5.8275,171.63,171.6,14.47755496]
[1746793407739,5.8275,171.63,171.61,8.64935496]
[1746793407944,5.8275,171.63,171.62,2.2101574]
[1746793408143,31.94,171.65,171.62,2.2101574]
[1746793408144,5.8271,171.64,171.62,2.2101574]
[1746793408342,5.8271,171.64,171.63,2.2101574]
[1746793408847,31.92,171.66,171.63,8.64066644]
[1746793409142,5.8259,171.68,171.65,5.8264]
[1746793409346,5.8259,171.68,171.66,2.2101574]
[1746793409548,5.8259,171.68,171.67,2.2101574]
[1746793409747,6.881499,171.72,171.67,2.2101574]
[1746793410047,31.92,171.71,171.68,8.64056907]
[1746793410245,463.5346,171.76,171.69,2.2101574]
[1746793410444,31.92,171.75,171.7,8.63607265]
[1746793410648,6.881499,171.74,171.71,2.2101574]
[1746793410849,6.881499,171.74,171.72,2.20702363]
[1746793411050,6.881499,171.74,171.73,2.20702363]
[1746793411249,5.8249,171.71,171.68,5.8254]
[1746793411444,5.8249,171.71,171.69,2.20554087]
[1746793411644,5.8249,171.71,171.7,2.20554087]
[1746793417152,5.8243,171.72,171.7,2.20554087]
[1746793417358,31.88,171.75,171.71,2.20107928]
[1746793417657,31.88,171.75,171.72,2.20107928]
[1746793417857,5.8241,171.73,171.65,6.40385316]
[1746793418057,5.8241,171.73,171.66,8.60521579]
[1746793418258,5.8241,171.73,171.67,8.60425312]
[1746793418457,5.8241,171.73,171.68,8.60425312]
[1746793418661,5.8243,171.72,171.7,5.8249]
[1746793418865,5.8243,171.72,171.71,2.20074088]
[1746793420952,5.8243,171.72,171.68,2.20039996]
[1746793421153,31.86,171.75,171.69,2.20008459]
[1746793421355,38.741499,171.75,171.69,5.825]
[1746793421555,31.86,171.75,171.69,5.825]
[1746793421750,31.84,171.74,171.68,2.20039996]
[1746793421956,31.84,171.74,171.7,5.8247]
[1746793422162,461.68,171.76,171.68,2.20039996]
[1746793422461,31.84,171.76,171.69,6.3914649]
[1746793422661,37.6631,171.76,171.7,6.3914649]
[1746793422965,6.881499,171.78,171.68,2.20039996]
[1746793423262,5.8231,171.76,171.69,6.39048959]
[1746793423462,5.8231,171.76,171.68,2.20039996]
[1746793423463,31.84,171.77,171.72,5.8239]
[1746793423762,5.8232,171.76,171.72,5.8239]
[1746793424153,38.721499,171.78,171.73,5.8239]
[1746793424355,6.881499,171.79,171.69,6.39026153]
[1746793424563,31.82,171.78,171.7,7.55508389]
[1746793424861,6.881499,171.8,171.71,8.28416153]
[1746793424862,31.82,171.79,171.71,8.28416153]
[1746793425160,31.82,171.79,171.71,5.7535]
[1746793425358,37.642,171.79,171.76,5.8226]
[1746793425758,31.82,171.79,171.71,5.7535]
[1746793426462,6.881499,171.77,171.71,1.8939]
[1746793426657,6.881499,171.74,171.7,1.16482236]
[1746793426955,38.701499,171.74,171.7,1.16482236]
[1746793427160,5.8246,171.71,171.7,1.16482236]
[1746793427360,38.701499,171.74,171.68,2.20039996]
[1746793428964,5.8253,171.69,171.68,2.20039996]
[1746793431269,31.82,171.74,171.68,2.20039996]
[1746793431464,38.701499,171.74,171.68,2.20039996]
[1746793431767,5.824,171.73,171.7,5.8248]
[1746793431970,6.881499,171.77,171.68,2.20039996]
[1746793432163,31.78,171.76,171.68,2.20039996]
[1746793432367,37.6029,171.76,171.68,3.36535802]
[1746793432569,37.6029,171.76,171.69,1.8073]
[1746793433771,37.6029,171.76,171.73,5.8238]
[1746793434374,31.78,171.76,171.69,1.8073]
[1746793435164,31.78,171.76,171.71,5.8246]
[1746793435363,31.78,171.76,171.68,3.36535802]
[1746793435562,6.881499,171.74,171.68,3.36535802]
[1746793435771,6.881499,171.74,171.69,5.8252]
[1746793435968,6.881499,171.74,171.68,3.36535802]
[1746793436174,6.881499,171.71,171.68,3.36535802]
[1746793436475,5.8253,171.69,171.68,3.36535802]
[1746793438076,31.76,171.7,171.68,3.36535802]
[1746793438576,31.76,171.7,171.68,9.19065802]
[1746793438769,31.76,171.7,171.68,3.36535802]
[1746793439571,10.99582752,171.74,171.68,3.36535802]
[1746793439878,5.8246,171.71,171.68,9.19085802]
[1746793440278,5.8249,171.7,171.68,3.36535802]
[1746793440883,5.8253,171.69,171.68,3.36535802]
[1746793444103,5.8266,171.65,171.63,1.0]
[1746793444582,5.827,171.64,171.63,1.0]
[1746793444781,31.72,171.67,171.63,1.0]
[1746793445289,5.8268,171.65,171.63,1.0]
[1746793445888,5.8268,171.65,171.63,6.8273]
[1746793446486,31.72,171.67,171.63,1.0]
[1746793446692,31.72,171.67,171.64,6.42701894]
[1746793446879,31.72,171.67,171.63,1.0]
[1746793447285,37.5461,171.67,171.64,5.8268]
[1746793447580,31.72,171.67,171.64,5.8268]
[1746793448090,5.8265,171.66,171.63,6.8272]
[1746793448389,31.72,171.67,171.64,6.43377626]
[1746793448589,31.72,171.67,171.63,1.0]
[1746793448793,37.5461,171.67,171.64,5.8269]
[1746793450084,37.5461,171.67,171.65,6.44461934]
[1746793450280,5.8263,171.66,171.64,5.8269]
[1746793450488,5.8263,171.66,171.65,6.4446215]
[1746793450786,399.67582752,171.83,171.65,45.10978316]
[1746793450983,1.0703526,171.82,171.66,6.4446215]
[1746793451184,1.0703526,171.82,171.67,7.60964742]
[1746793451392,1.0703526,171.82,171.68,8.3799215]
[1746793451690,31.68,171.81,171.69,6.4446215]
[1746793451881,31.68,171.81,171.7,6.4446215]
[1746793452078,367.99582752,171.83,171.71,6.4446215]
[1746793452280,16.81652752,171.83,171.79,5.8218]
[1746793452485,31.68,171.82,171.7,31.68]
[1746793452686,31.68,171.82,171.71,6.4512733]
[1746793452886,31.68,171.82,171.72,6.4512733]
[1746793453086,31.68,171.82,171.73,6.4512733]
[1746793453279,5.8213,171.81,171.74,6.4512733]
[1746793453483,5.8213,171.81,171.75,6.4512733]
[1746793453685,31.68,171.82,171.76,6.4512733]
[1746793453889,31.68,171.82,171.7,31.68]
[1746793454080,31.68,171.82,171.71,6.45688392]
[1746793454287,31.68,171.82,171.72,6.45688392]
[1746793454487,5.8221,171.79,171.75,5.823]
[1746793454786,31.68,171.82,171.75,5.823]
[1746793455691,10.99582752,171.79,171.74,5.8235]
[1746793455993,10.99582752,171.79,171.7,31.68]
[1746793456291,10.99582752,171.79,171.71,6.45680548]
[1746793456490,10.99582752,171.79,171.72,6.45680548]
[1746793456794,10.99582752,171.79,171.73,6.45680548]
[1746793456993,10.99582752,171.79,171.74,6.45680548]
[1746793457288,10.99582752,171.79,171.7,31.68]
[1746793457493,10.99582752,171.79,171.71,6.45716943]
[1746793457693,10.99582752,171.79,171.72,6.45698978]
[1746793457893,16.81792752,171.79,171.75,5.8232]
[1746793458294,16.81792752,171.79,171.7,31.68]
[1746793458496,10.99582752,171.79,171.76,5.8228]
[1746793459196,5.8217,171.8,171.77,5.8224]
[1746793459592,10.99582752,171.81,171.7,31.68]
[1746793459897,12.85332752,171.85,171.71,7.62009254]
[1746793460094,12.85332752,171.85,171.72,6.45533802]
[1746793460291,31.62,171.85,171.84,5.8199]
[1746793460995,31.62,171.85,171.84,2.26334459]
[1746793461195,37.4399,171.85,171.84,2.26334459]
[1746793461390,37.4399,171.85,171.76,1.9877]
[1746793461595,42.61582752,171.85,171.77,8.7172807]
[1746793461797,42.61582752,171.85,171.74,1.914]
[1746793461998,2.99185403,171.84,171.75,6.44703947]
[1746793462297,357.0,171.89,171.76,6.44703947]
[1746793462596,388.6,171.89,171.75,31.62]
[1746793462787,5.8197,171.86,171.83,5.8205]
[1746793462993,357.0,171.89,171.75,31.62]
[1746793463198,31.6,171.89,171.84,5.8199]
[1746793463397,12.82522752,171.92,171.76,1.16441546]
[1746793463602,31.6,171.91,171.77,6.44773205]
[1746793463897,5.8189,171.88,171.78,6.44766679]
[1746793464199,5.8189,171.88,171.79,1.9557]
[1746793464397,7.6471,171.92,171.8,32.76414435]
[1746793464599,1.8294,171.92,171.81,10.22346679]
[1746793464898,5.8181,171.91,171.82,6.44614956]
[1746793465098,10.99582752,171.96,171.83,6.44614956]
[1746793465296,1.06950565,171.95,171.87,5.8191]
[1746793465696,42.59582752,171.96,171.87,5.8191]
[1746793466099,5.8181,171.91,171.88,5.8188]
[1746793466297,31.58,171.95,171.81,3.7758]
[1746793466602,5.8184,171.9,171.86,5.8193]
[1746793466798,31.58,171.95,171.81,3.7758]
[1746793467103,10.99582752,171.93,171.82,6.43574]
[1746793467402,5.8194,171.87,171.81,3.7758]
[1746793467601,5.8194,171.87,171.82,6.4318686]
[1746793467802,5.8204,171.84,171.81,5.8211]
[1746793468303,5.8204,171.84,171.8,1.16414435]
[1746793469705,5.8204,171.84,171.8,6.98554435]
[1746793469905,31.56,171.85,171.8,1.16414435]
[1746793470205,31.56,171.85,171.75,8.2769819]
[1746793470403,5.8206,171.83,171.76,6.4302819]
[1746793470604,31.56,171.85,171.77,6.4302819]
[1746793470905,5.8204,171.84,171.8,5.8215]
[1746793471106,31.56,171.85,171.76,6.4297599]
[1746793471408,37.3801,171.85,171.81,5.821]
[1746793471705,31.56,171.85,171.81,5.821]
[1746793471907,31.56,171.85,171.75,1.8467]
[1746793472101,31.56,171.85,171.76,6.42796378]
[1746793472295,31.56,171.85,171.77,6.42796378]
[1746793472494,31.56,171.85,171.78,6.42796378]
[1746793472697,37.3799,171.85,171.82,5.8207]
[1746793472897,31.56,171.85,171.82,5.8207]
[1746793473305,31.56,171.85,171.78,6.42601277]
[1746793473498,42.53582752,171.89,171.79,8.61943718]
[1746793473703,357.0,171.92,171.8,33.73402859]
[1746793473904,357.0,171.92,171.81,2.1934889]
[1746793474106,31.54,171.91,171.82,2.1934889]
[1746793474405,357.0,171.92,171.83,8.61662731]
[1746793474406,31.54,171.92,171.83,8.61662731]
[1746793474602,31.54,171.92,171.84,4.1752889]
[1746793474803,31.54,171.92,171.85,2.1934889]
[1746793475101,7.7911,171.93,171.86,2.1934889]
[1746793475295,7.7911,171.93,171.87,2.1934889]
[1746793475603,31.52,171.94,171.88,2.1934889]
[1746793475805,31.52,171.94,171.89,2.19079226]
[1746793476109,5.8182,171.9,171.87,5.8191]
[1746793476707,31.52,171.94,171.84,1.9818]
[1746793477109,1.06960781,171.93,171.84,1.9818]
[1746793477506,5.8184,171.9,171.87,5.819]
[1746793477702,1.06960781,171.93,171.87,5.819]
[1746793477905,10.99582752,171.91,171.81,1.9257]
[1746793478205,5.8192,171.88,171.84,5.8199]
[1746793478405,31.5,171.88,171.84,5.8199]
[1746793478709,31.5,171.88,171.78,31.52]
[1746793478897,31.5,171.88,171.79,2.18992284]
[1746793479096,31.5,171.88,171.8,2.18992284]
[1746793479307,31.5,171.88,171.81,2.18992284]
[1746793479504,31.5,171.88,171.78,6.41581124]
[1746793479709,31.5,171.88,171.79,2.18965038]
[1746793480007,31.5,171.88,171.8,2.18965038]
[1746793480211,31.5,171.88,171.81,2.18965038]
[1746793480407,31.5,171.88,171.77,33.4628]
[1746793480708,31.5,171.88,171.78,2.1894033]
[1746793480908,5.8195,171.86,171.79,2.1894033]
[1746793481207,5.8195,171.86,171.8,2.18942589]
[1746793481404,5.8195,171.86,171.83,5.8203]
[1746793481911,31.5,171.88,171.77,1.9628]
[1746793482210,31.5,171.88,171.78,8.60973397]
[1746793482409,31.5,171.88,171.79,8.60973397]
[1746793482710,31.5,171.88,171.8,2.18946011]
[1746793482912,31.5,171.88,171.81,2.18946011]
[1746793483111,31.5,171.88,171.82,2.189526]
[1746793483410,31.5,171.88,171.77,1.9628]
[1746793483606,31.5,171.88,171.78,8.61238613]
[1746793483913,31.5,171.88,171.83,5.8203]
[1746793484410,31.5,171.88,171.84,5.8201]
[1746793485110,31.46,171.89,171.85,2.18990088]
[1746793485310,31.46,171.89,171.79,6.42319159]
[1746793485510,31.46,171.89,171.8,8.61285648]
[1746793485710,31.46,171.89,171.87,5.8189]
[1746793486108,3.9243,171.94,171.81,31.46]
[1746793486313,37.2778,171.92,171.82,8.61290782]
[1746793486506,37.2778,171.92,171.83,2.18960556]
[1746793486707,37.2778,171.92,171.84,4.16160556]
[1746793486906,37.2778,171.92,171.89,5.8183]
[1746793487310,5.8178,171.92,171.89,5.8183]
[1746793487509,37.2772,171.93,171.84,1.972]
[1746793487809,31.46,171.93,171.85,2.18663137]
[1746793488011,394.2566,171.95,171.86,8.60189002]
[1746793488202,394.2566,171.95,171.87,2.18663137]
[1746793488407,388.44,171.95,171.88,2.18663137]
[1746793488608,388.44,171.95,171.89,2.18663137]
[1746793488814,388.44,171.95,171.9,2.18665192]
[1746793489014,388.44,171.95,171.88,5.8188]
[1746793489310,388.44,171.95,171.85,1.8164]
[1746793489514,388.44,171.95,171.91,5.8176]
[1746793489715,388.44,171.95,171.85,1.8164]
[1746793489909,394.2567,171.95,171.86,8.63162459]
[1746793490111,394.2567,171.95,171.92,5.8173]
[1746793490412,357.0,171.95,171.85,1.8164]
[1746793490606,357.0,171.95,171.86,8.63513912]
[1746793490803,357.0,171.95,171.87,8.62896625]
[1746793491007,357.0,171.95,171.88,2.1939372]
[1746793491314,31.44,171.96,171.89,2.1939372]
[1746793491513,5.817,171.94,171.91,5.8176]
[1746793492113,31.44,171.96,171.85,1.8164]
[1746793492311,31.44,171.96,171.86,8.6379621]
[1746793492511,31.44,171.96,171.87,8.6419792]
[1746793492813,31.44,171.96,171.88,8.64299708]
[1746793492814,37.2562,171.96,171.88,8.64299708]
[1746793493109,37.2562,171.96,171.89,2.19647048]
[1746793493309,37.2562,171.96,171.9,2.19647048]
[1746793493513,37.2562,171.96,171.85,1.8164]
[1746793493514,37.2562,171.96,171.91,2.19647048]
[1746793493713,37.2562,171.96,171.92,8.01377048]
[1746793493904,37.2562,171.96,171.92,5.8173]
[1746793494403,37.2562,171.96,171.93,8.01696196]
[1746793494608,31.44,171.96,171.85,1.8164]
[1746793494904,31.4,171.96,171.86,8.66036668]
[1746793495108,31.4,171.96,171.87,8.66036668]
[1746793495305,37.2158,171.97,171.88,8.66036668]
[1746793495507,1.9874,171.99,171.89,8.6626985]
[1746793495711,31.4,171.98,171.9,8.6626985]
[1746793495906,37.2157,171.98,171.95,5.8163]
[1746793496106,1.9874,171.99,171.96,2.19776563]
[1746793496311,33.3874,171.99,171.95,5.8163]
[1746793496512,5.8155,171.98,171.96,2.19820728]
[1746793496706,5.8155,171.98,171.94,5.8167]
[1746793496909,5.8155,171.98,171.95,2.19765961]
[1746793497107,5.8155,171.98,171.96,2.19765961]
[1746793497313,33.3874,171.99,171.86,1.16373792]
[1746793497513,33.3874,171.99,171.87,8.67166436]
[1746793497706,33.3874,171.99,171.88,8.67166436]
[1746793497911,5.8167,171.95,171.89,8.67166436]
[1746793498115,5.8167,171.95,171.9,8.67166436]
[1746793498322,33.3874,171.99,171.91,8.67166436]
[1746793498520,5.8167,171.95,171.92,2.19769601]
[1746793498817,33.3874,171.99,171.93,2.19769601]
[1746793499020,5.8165,171.95,171.94,2.19769601]
[1746793500724,5.8174,171.93,171.9,5.8181]
[1746793500915,33.3874,171.99,171.91,2.19906067]
[1746793501114,33.3874,171.99,171.92,2.19906068]
[1746793501419,33.3874,171.99,171.93,2.19906068]
[1746793501720,33.3874,171.99,171.94,2.19906068]
[1746793501915,33.3874,171.99,171.95,2.19906068]
[1746793502118,5.8173,171.93,171.9,5.8181]
[1746793502318,5.8173,171.93,171.91,8.6787121]
[1746793502615,5.8173,171.93,171.92,8.6787121]
[1746793503015,33.3874,171.99,171.92,8.6787121]
[1746793503218,33.3874,171.99,171.93,8.68176177]
[1746793503516,33.3874,171.99,171.94,2.19759006]
[1746793503824,33.3874,171.99,171.95,2.19759006]
[1746793504011,5.8164,171.96,171.87,31.38]
[1746793504217,33.3874,171.99,171.88,8.69062448]
[1746793504417,5.8167,171.95,171.92,5.8173]
[1746793504617,5.8167,171.95,171.93,8.69062448]
[1746793504913,5.8167,171.95,171.94,2.19897957]
[1746793506123,5.8171,171.94,171.91,5.8178]
[1746793506323,33.3874,171.99,171.92,8.70407124]
[1746793506524,33.3874,171.99,171.93,8.70403659]
[1746793506724,5.8165,171.95,171.94,2.20035296]
[1746793507721,357.0,172.02,171.96,5.8161]
[1746793508025,31.32,172.02,171.97,2.20035296]
[1746793508225,31.32,172.02,171.88,1.9351]
[1746793508226,5.8152,171.99,171.98,2.20035296]
[1746793510624,1.8007,172.03,171.98,2.20035296]
[1746793510929,31.3,172.02,171.99,2.20035296]
[1746793511131,1.8007,172.03,172.0,2.20035296]
[1746793511323,37.1143,172.02,171.98,5.8151]
[1746793511622,37.1143,172.02,171.99,2.20149645]
[1746793511819,37.1143,172.02,172.0,2.20149645]
[1746793512021,37.1143,172.02,172.01,2.20149645]
[1746793512827,5.8143,172.02,172.01,2.20149645]
[1746793513028,3.9168,172.07,172.01,2.20149645]
[1746793513330,31.3,172.05,172.02,2.20149645]
[1746793513529,5.8133,172.05,171.95,31.3]
[1746793513829,5.8133,172.05,171.96,8.69545745]
[1746793514128,5.8133,172.05,172.02,5.814]
[1746793514328,5.8133,172.05,172.03,2.1990803]
[1746793514627,5.8133,172.05,172.02,5.814]
[1746793514828,5.8134,172.04,172.01,5.8143]
[1746793515130,31.28,172.06,172.02,2.19823776]
[1746793515329,5.8147,172.01,171.98,5.8153]
[1746793515525,10.99582752,172.05,171.99,2.19809424]
[1746793515729,357.0,172.04,171.93,6.49538109]
[1746793515929,10.99582752,172.01,171.94,2.19883547]
[1746793516224,33.0923,172.0,171.95,2.19883547]
[1746793516429,5.8161,171.96,171.93,5.8169]
[1746793516631,5.8161,171.96,171.94,2.19953194]
[1746793516832,5.8161,171.96,171.95,2.19953336]
[1746793518133,5.8159,171.97,171.95,2.19953336]
[1746793518330,31.26,171.98,171.96,2.19953336]
[1746793518632,38.8871,172.0,171.97,2.19953336]
[1746793518833,357.0,172.04,171.98,2.19953336]
[1746793519029,31.26,172.03,171.99,2.20023647]
[1746793519330,31.26,172.03,171.92,6.49750778]
[1746793519531,10.99582752,172.01,171.93,2.19997645]
[1746793519730,10.99582752,172.01,171.94,2.19997645]
[1746793519933,10.99582752,172.01,171.95,2.19997645]
[1746793520134,10.99582752,172.01,171.91,1.9832]
[1746793520433,10.99582752,172.01,171.93,5.8171]
[1746793520633,10.99582752,172.01,171.94,2.20040958]
[1746793520830,10.99582752,172.01,171.95,2.20040958]
[1746793521131,10.99582752,172.01,171.87,1.9135]
[1746793521326,10.99582752,172.01,171.88,8.69860893]
[1746793521525,5.8168,171.94,171.89,8.69860893]
[1746793521732,5.8168,171.94,171.9,8.69860893]
[1746793521932,5.8168,171.94,171.91,2.20050684]
[1746793522125,31.24,171.95,171.93,5.8171]
[1746793522328,31.24,171.95,171.94,2.20067361]
[1746793523334,37.0565,171.95,171.94,2.20067361]
[1746793523735,5.8174,171.93,171.88,6.50425537]
[1746793524036,31.24,171.95,171.86,3.07933792]
[1746793524236,31.24,171.95,171.87,6.5041327]
[1746793524434,5.8176,171.92,171.89,5.8183]
[1746793524636,31.24,171.95,171.86,1.16373792]
[1746793524837,31.24,171.95,171.87,6.50671221]
[1746793525036,37.0567,171.95,171.86,1.16373792]
[1746793525231,31.24,171.95,171.86,1.16373792]
[1746793525436,31.22,171.95,171.86,1.16373792]
[1746793525632,31.22,171.95,171.87,6.50818728]
[1746793525838,1.8414,171.96,171.88,6.50818728]
[1746793526036,31.22,171.98,171.94,5.8165]
[1746793526237,31.22,171.98,171.89,1.9257]
[1746793526438,37.0357,171.98,171.94,5.8166]
[1746793527339,37.0357,171.98,171.95,5.8164]
[1746793527544,31.22,171.98,171.89,1.9257]
[1746793527744,31.22,171.98,171.9,6.51361196]
[1746793527946,31.22,171.98,171.91,6.51361196]
[1746793528148,31.22,171.98,171.92,6.51361196]
[1746793528446,31.22,171.98,171.92,5.8173]
[1746793528648,31.22,171.98,171.89,1.9257]
[1746793528847,5.8168,171.94,171.91,5.8177]
[1746793529044,31.2,171.93,171.86,1.16373792]
[1746793529248,31.2,171.93,171.87,6.51719564]
[1746793529446,31.2,171.93,171.9,5.818]
[1746793529644,31.2,171.93,171.91,6.51719564]
[1746793529845,31.2,171.93,171.9,5.818]
[1746793530142,31.2,171.93,171.91,6.52002819]
[1746793530344,31.2,171.93,171.92,6.51755437]
[1746793530744,1.9184,171.99,171.92,6.51755437]
[1746793530949,31.2,171.98,171.86,1.16373792]
[1746793531150,31.2,171.98,171.91,5.8177]
[1746793531350,31.2,171.98,171.92,6.5196539]
[1746793531545,31.2,171.98,171.93,6.5196539]
[1746793531844,31.2,171.98,171.9,5.8181]
[1746793532046,5.817,171.94,171.91,6.52109135]
[1746793532249,31.2,171.93,171.92,6.52109135]
[1746793532851,37.0171,171.93,171.92,6.52109135]
[1746793534242,5.8171,171.93,171.92,6.52109135]
[1746793534452,31.18,171.94,171.92,6.52109135]
[1746793534745,31.18,171.94,171.86,1.16373792]
[1746793534948,36.997,171.94,171.87,6.52406799]
[1746793535247,36.997,171.94,171.88,6.52406799]
[1746793535447,36.997,171.94,171.9,5.8179]
[1746793535650,5.8172,171.93,171.91,6.52406799]
[1746793535952,5.8172,171.93,171.92,6.52406799]
[1746793536852,36.9969,171.94,171.92,6.52406799]
[1746793537052,36.9969,171.94,171.91,6.8178]
[1746793537248,5.8169,171.94,171.92,6.52548116]
[1746793537448,31.16,171.93,171.91,6.8178]
[1746793537747,31.16,171.93,171.92,6.52757132]
[1746793538945,1.9184,171.99,171.92,6.52757132]
[1746793539152,31.16,171.98,171.93,6.52757132]
[1746793539354,31.16,171.98,171.94,6.52757132]